bitfinex-derivatives/quotes_SOLF0:USTF0_20241021
["timestamp","ask_amount","ask_price","bid_price","bid_amount"]
[1729478807770,4.76,168.81,168.71,2.9642]
[1729478807771,2.964,168.74,168.71,2.9030412]
[1729478807976,4.76,168.81,168.7,4.76]
[1729478808478,2.9639,168.74,168.7,4.76]
[1729478808676,2.9639,168.74,168.7,7.72205093]
[1729478809579,2.9641,168.73,168.7,7.72205093]
[1729478810070,4.76,168.81,168.7,2.96205093]
[1729478810271,0.9254,168.8,168.67,2.5868]
[1729478810782,1.2878,168.79,168.67,2.5868]
[1729478811879,2.9644,168.71,168.67,2.5868]
[1729478816092,2.9646,168.7,168.67,2.5868]
[1729478816472,4.76,168.75,168.68,2.9648]
[1729478816473,2.9641,168.73,168.68,2.9648]
[1729478816672,1.2878,168.79,168.67,2.5868]
[1729478816879,4.76,168.78,168.68,1.48316839]
[1729478817074,4.76,168.78,168.69,6.24316839]
[1729478817280,4.76,168.78,168.69,4.76]
[1729478817478,2.964,168.74,168.69,7.7247]
[1729478817877,4.76,168.78,168.69,7.7247]
[1729478818473,2.9636,168.76,168.69,7.7247]
[1729478818684,4.76,168.78,168.69,7.7247]
[1729478819973,2.964,168.74,168.7,1.48312478]
[1729478820174,2.964,168.74,168.7,3.00552662]
[1729478820387,2.964,168.74,168.69,7.7247]
[1729478820588,2.964,168.74,168.7,1.4831264]
[1729478820786,2.964,168.74,168.7,2.94561776]
[1729478820986,2.964,168.74,168.69,7.7247]
[1729478821194,2.964,168.74,168.7,1.4831264]
[1729478821388,2.964,168.74,168.7,3.01175477]
[1729478821685,2.964,168.73,168.69,4.76]
[1729478821885,2.964,168.73,168.7,1.4831264]
[1729478822086,4.76,168.78,168.7,2.99811216]
[1729478822288,4.76,168.78,168.68,4.64]
[1729478822690,2.9637,168.75,168.68,4.64]
[1729478822989,4.76,168.78,168.67,5.5517]
[1729478822990,4.76,168.78,168.67,10.1917]
[1729478823187,4.76,168.78,168.68,1.48326991]
[1729478823387,4.76,168.78,168.67,2.5868]
[1729478824483,4.76,168.78,168.68,1.48324389]
[1729478824683,4.76,168.78,168.69,6.12324389]
[1729478824885,4.76,168.78,168.69,4.64]
[1729478825888,2.964,168.73,168.69,4.64]
[1729478828697,2.9642,168.72,168.68,2.9648]
[1729478828896,2.9642,168.72,168.69,4.64]
[1729478831693,5.9278,168.79,168.69,4.64]
[1729478831694,2.9635,168.76,168.7,2.9644]
[1729478831894,7.2371,168.84,168.7,2.98488571]
[1729478832195,4.64,168.83,168.71,1.48303214]
[1729478832498,4.64,168.83,168.71,3.01958333]
[1729478832691,4.64,168.83,168.72,2.964]
[1729478832897,4.64,168.83,168.73,4.64]
[1729478833591,4.64,168.82,168.73,7.6039]
[1729478833787,4.64,168.82,168.74,2.6255]
[1729478834599,2.9633,168.78,168.74,2.6255]
[1729478834796,4.64,168.82,168.75,2.9636]
[1729478835092,2.9629,168.8,168.74,3.9301]
[1729478835297,2.9629,168.8,168.74,6.8939]
[1729478835691,2.9629,168.8,168.75,1.48263964]
[1729478835891,2.9629,168.8,168.74,6.8939]
[1729478836092,2.9629,168.8,168.75,1.48266898]
[1729478836293,2.9629,168.8,168.74,6.8939]
[1729478836592,2.9629,168.8,168.75,1.48265608]
[1729478836795,2.9629,168.8,168.74,6.8939]
[1729478836990,2.9629,168.8,168.75,1.48268378]
[1729478837190,2.9629,168.8,168.74,6.8939]
[1729478837392,2.9629,168.8,168.75,1.48268449]
[1729478837592,2.9629,168.8,168.74,6.8939]
[1729478837893,2.9629,168.8,168.75,1.48268444]
[1729478838098,2.9629,168.8,168.74,6.8939]
[1729478838292,2.9629,168.8,168.75,1.48268605]
[1729478838495,2.9629,168.8,168.74,6.8939]
[1729478839500,4.64,168.85,168.74,6.8939]
[1729478839699,2.963,168.79,168.74,6.8939]
[1729478845900,2.9631,168.78,168.74,6.8939]
[1729478847609,4.64,168.85,168.74,3.9301]
[1729478847809,2.9633,168.77,168.75,4.64]
[1729478848301,4.64,168.85,168.75,4.64]
[1729478848506,2.9631,168.79,168.75,4.64]
[1729478848703,4.64,168.88,168.75,4.64]
[1729478849302,4.64,168.88,168.78,2.9631]
[1729478849509,4.64,168.88,168.79,4.64]
[1729478849914,1.3277,168.89,168.79,4.64]
[1729478850207,1.3277,168.89,168.79,7.6028]
[1729478850408,2.9617,168.86,168.79,7.6028]
[1729478850607,1.3277,168.89,168.79,7.6028]
[1729478851111,2.9621,168.84,168.79,7.6028]
[1729478852014,1.3277,168.89,168.74,3.9301]
[1729478852205,1.3277,168.89,168.75,6.00236187]
[1729478852516,2.962,168.85,168.76,4.52]
[1729478852712,4.52,168.85,168.76,4.52]
[1729478853411,2.9632,168.78,168.76,4.52]
[1729478854204,2.9632,168.78,168.75,4.52]
[1729478855010,4.52,168.85,168.74,2.6255]
[1729478855220,4.52,168.85,168.72,4.52]
[1729478855403,2.9626,168.82,168.72,4.52]
[1729478855608,5.7777,168.81,168.69,2.9646]
[1729478855813,5.7777,168.81,168.71,4.52]
[1729478856208,2.9638,168.75,168.71,4.52]
[1729478859312,4.52,168.81,168.71,4.52]
[1729478859513,4.52,168.81,168.72,1.2499]
[1729478859710,4.52,168.84,168.72,1.2499]
[1729478860519,4.52,168.84,168.73,4.52]
[1729478861413,0.9251,168.83,168.73,4.52]
[1729478862313,2.9628,168.8,168.73,4.52]
[1729478862516,0.9251,168.83,168.73,4.52]
[1729478862912,2.9636,168.76,168.72,1.2499]
[1729478863219,2.9636,168.76,168.72,5.7699]
[1729478864814,4.52,168.8,168.72,5.7699]
[1729478865011,2.9637,168.75,168.72,5.7699]
[1729478865815,4.52,168.8,168.72,5.7699]
[1729478866228,4.52,168.83,168.72,5.7699]
[1729478866416,4.52,168.83,168.73,2.5668]
[1729478866623,2.9633,168.77,168.73,5.5308]
[1729478866828,2.9633,168.77,168.73,2.5668]
[1729478867619,4.52,168.83,168.73,2.5668]
[1729478869325,2.9631,168.78,168.74,2.9638]
[1729478869725,2.9627,168.81,168.74,2.9638]
[1729478869925,4.52,168.83,168.74,2.9638]
[1729478870826,2.963,168.79,168.74,2.9638]
[1729478874520,2.9622,168.84,168.79,2.9629]
[1729478874725,1.336,168.88,168.8,4.52]
[1729478874928,4.52,168.89,168.8,4.52]
[1729478875127,2.9617,168.87,168.81,2.9625]
[1729478875323,4.52,168.89,168.8,5.8764]
[1729478875521,4.52,168.89,168.79,3.03706253]
[1729478875722,2.9617,168.86,168.79,4.52]
[1729478875923,4.52,168.89,168.79,7.5383866]
[1729478877231,2.9627,168.81,168.79,7.5383866]
[1729478879224,2.9623,168.83,168.79,7.5383866]
[1729478881822,2.9621,168.85,168.79,10.5012866]
[1729478882025,1.3193,168.92,168.79,10.5012866]
[1729478882230,4.5,168.91,168.79,7.5383866]
[1729478882440,4.5,168.91,168.79,3.0183866]
[1729478882733,4.5,168.91,168.78,4.5]
[1729478883429,2.9627,168.81,168.78,4.5]
[1729478885634,4.5,168.87,168.79,2.98186699]
[1729478885933,4.5,168.87,168.75,1.3564]
[1729478886138,2.9629,168.8,168.76,4.52]
[1729478886525,1.2805,168.86,168.76,4.52]
[1729478886733,2.963,168.79,168.76,4.52]
[1729478886935,1.2805,168.86,168.75,1.3564]
[1729478887135,0.9218,168.85,168.75,5.8764]
[1729478887637,0.9218,168.85,168.73,1.2308]
[1729478887841,0.9218,168.85,168.71,5.7828]
[1729478888637,18.7218,168.85,168.71,1.2628]
[1729478889326,112.88837462,168.83,168.71,1.2628]
[1729478889532,4.52,168.82,168.7,2.95287261]
[1729478889837,4.52,168.82,168.69,4.52]
[1729478890234,2.9641,168.73,168.69,4.52]
[1729478891442,4.52,168.78,168.67,2.5189]
[1729478891633,4.52,168.78,168.68,6.0030597]
[1729478891838,4.52,168.78,168.68,4.52]
[1729478892241,2.9642,168.73,168.68,4.52]
[1729478892742,4.52,168.78,168.68,4.52]
[1729478893043,2.9642,168.72,168.68,4.52]
[1729478893237,4.52,168.78,168.67,2.5189]
[1729478893438,2.9646,168.7,168.68,6.00306451]
[1729478893637,2.9646,168.7,168.68,4.52]
[1729478897545,2.964,168.73,168.69,2.9647]
[1729478897939,4.52,168.78,168.7,1.2445]
[1729478898135,4.52,168.78,168.7,4.16365319]
[1729478898540,2.9639,168.74,168.7,4.16365319]
[1729478902040,18.7218,168.85,168.7,4.16365319]
[1729478902241,4.52,168.84,168.71,2.9643]
[1729478902443,4.52,168.83,168.72,4.52]
[1729478903337,2.9633,168.77,168.72,7.4842]
[1729478904949,2.9631,168.79,168.74,2.9638]
[1729478905145,4.52,168.88,168.73,1.3435]
[1729478905348,4.52,168.88,168.74,1.48261869]
[1729478905553,4.52,168.9,168.75,1.48261869]
[1729478905745,4.52,168.9,168.76,6.00261869]
[1729478905953,4.52,168.9,168.77,2.82581869]
[1729478906150,4.52,168.9,168.78,1.48261869]
[1729478906450,4.52,168.9,168.79,1.48261869]
[1729478906651,2.9615,168.87,168.81,2.9625]
[1729478907451,2.9615,168.87,168.81,5.90311168]
[1729478908553,4.52,168.9,168.81,5.90311168]
[1729478908750,4.52,168.9,168.81,2.94061168]
[1729478908948,4.52,168.9,168.8,8.7104]
[1729478909551,4.52,168.9,168.8,11.6336512]
[1729478909750,2.9617,168.86,168.81,2.9626]
[1729478910058,2.9617,168.86,168.8,8.6709512]
[1729478910749,4.52,168.9,168.8,2.9232512]
[1729478910953,4.52,168.9,168.77,1.3432]
[1729478911149,2.9631,168.78,168.77,1.3432]
[1729478911355,2.9631,168.78,168.76,4.52]
[1729478912057,2.9631,168.78,168.74,5.7472]
[1729478913157,4.52,168.84,168.74,5.7472]
[1729478913464,4.5,168.83,168.74,5.7472]
[1729478913658,4.5,168.82,168.74,1.2472]
[1729478913852,2.9636,168.76,168.74,1.2472]
[1729478916558,4.5,168.82,168.74,1.2472]
[1729478916559,2.9628,168.8,168.74,1.2472]
[1729478916753,4.5,168.82,168.74,1.2472]
[1729478917961,4.5,168.82,168.74,5.7472]
[1729478918368,2.9633,168.78,168.74,5.7472]
[1729478918762,2.9637,168.75,168.74,5.7472]
[1729478918964,4.5,168.82,168.74,5.7472]
[1729478919977,2.9633,168.78,168.74,5.7472]
[1729478920161,4.5,168.82,168.74,1.2472]
[1729478920362,2.9644,168.71,168.7,2.91915319]
[1729478920566,4.5,168.75,168.61,2.89872806]
[1729478920768,4.5,168.74,168.62,2.8219479]
[1729478921070,2.9644,168.71,168.65,2.9654]
[1729478921279,4.5,168.74,168.62,2.8219479]
[1729478921574,4.5,168.74,168.62,1.4830479]
[1729478921575,2.9658,168.63,168.62,1.4830479]
[1729478921762,4.5,168.69,168.62,1.4830479]
[1729478921961,4.52,168.69,168.62,1.4830479]
[1729478922865,2.9666,168.59,168.57,2.90345229]
[1729478923069,2.9666,168.59,168.57,2.97971057]
[1729478923373,4.52,168.63,168.53,1.48408522]
[1729478923567,2.9667,168.58,168.53,2.96398415]
[1729478923767,4.52,168.63,168.51,7.0073]
[1729478923969,4.52,168.63,168.51,9.90452107]
[1729478924179,4.52,168.62,168.51,9.90452107]
[1729478924378,84.79241189,168.72,168.51,9.90452107]
[1729478924379,114.57801374,168.7,168.51,9.90452107]
[1729478924673,5.38843894,168.69,168.52,1.48420728]
[1729478924863,4.52,168.69,168.53,1.48420728]
[1729478925068,4.52,168.69,168.51,9.90452107]
[1729478925267,4.52,168.69,168.52,1.48417006]
[1729478925469,4.52,168.69,168.51,9.90452107]
[1729478925669,4.52,168.69,168.55,2.9672]
[1729478925973,4.52,168.69,168.55,4.52]
[1729478926172,2.9659,168.62,168.55,7.487]
[1729478926573,4.52,168.65,168.55,4.52]
[1729478926772,2.9659,168.62,168.55,4.52]
[1729478926972,4.52,168.65,168.55,4.52]
[1729478927972,2.9659,168.62,168.55,4.52]
[1729478928176,4.52,168.65,168.55,4.52]
[1729478928575,2.9665,168.59,168.55,4.52]
[1729478931079,4.52,168.65,168.55,4.52]
[1729478931275,2.9663,168.6,168.55,4.52]
[1729478931476,4.52,168.65,168.55,4.52]
[1729478932377,4.52,168.67,168.55,4.52]
[1729478932579,4.52,168.68,168.55,4.52]
[1729478933482,4.52,168.68,168.51,5.38452107]
[1729478933673,4.52,168.68,168.52,6.00381791]
[1729478933878,4.52,168.68,168.53,1.48381791]
[1729478934075,4.52,168.68,168.52,4.52]
[1729478934383,4.52,168.68,168.53,4.52]
[1729478934778,2.9661,168.61,168.55,2.9671]
[1729478935380,2.9661,168.61,168.55,7.4871]
[1729478935572,4.52,168.64,168.55,4.52]
[1729478936177,2.9666,168.59,168.53,2.9675]
[1729478936376,4.52,168.64,168.52,4.52]
[1729478936574,4.52,168.64,168.51,5.38452107]
[1729478936791,0.9228,168.63,168.51,5.38452107]
[1729478936977,2.9672,168.55,168.51,5.38452107]
[1729478937883,2.9669,168.57,168.51,4.12742107]
[1729478938087,4.52,168.59,168.46,1.2386]
[1729478938277,4.52,168.59,168.47,4.52]
[1729478938481,2.9682,168.49,168.46,1.2386]
[1729478938783,4.52,168.53,168.44,1.3129]
[1729478939080,2.9689,168.46,168.42,7.48614715]
[1729478939387,4.52,168.48,168.4,4.52]
[1729478939883,2.9693,168.43,168.39,4.26883423]
[1729478940092,4.52,168.48,168.39,4.26883423]
[1729478940885,2.9697,168.41,168.35,7.4905]
[1729478941083,4.52,168.44,168.33,1.254]
[1729478941275,4.52,168.43,168.33,8.70624527]
[1729478941476,4.52,168.42,168.33,2.93224527]
[1729478941682,4.52,168.42,168.28,4.62]
[1729478942075,4.52,168.42,168.23,4.02870722]
[1729478942276,1.4878,168.41,168.24,5.9042]
[1729478943283,1.4878,168.41,168.24,1.2842]
[1729478943483,1.4878,168.41,168.22,2.9176954]
[1729478943688,2.9714,168.31,168.23,2.9728]
[1729478943887,4.62,168.34,168.23,5.58518814]
[1729478944187,4.62,168.34,168.23,2.5897]
[1729478944578,4.62,168.34,168.21,3.0139146]
[1729478944889,4.62,168.34,168.2,4.62]
[1729478945085,4.62,168.34,168.2,7.59145352]
[1729478945391,2.9723,168.26,168.2,7.59145352]
[1729478945578,4.62,168.3,168.2,7.59145352]
[1729478945776,4.62,168.3,168.2,2.97145352]
[1729478945990,2.9723,168.26,168.19,4.62]
[1729478946284,4.62,168.3,168.2,3.02201373]
[1729478946485,2.9727,168.24,168.2,3.02201373]
[1729478946690,2.9727,168.24,168.18,4.62]
[1729478946991,2.9724,168.26,168.19,4.62]
[1729478947186,4.62,168.3,168.19,4.62]
[1729478947579,2.9722,168.27,168.19,4.62]
[1729478947883,4.62,168.3,168.19,4.62]
[1729478948381,2.9725,168.25,168.19,4.62]
[1729478948589,4.62,168.3,168.19,4.62]
[1729478948887,4.62,168.31,168.19,4.62]
[1729478949098,115.97782643,168.39,168.2,1.092912]
[1729478949286,115.97782643,168.39,168.21,1.092912]
[1729478949587,2.9707,168.35,168.27,2.972]
[1729478949791,4.62,168.38,168.28,3.00583478]
[1729478950286,4.62,168.38,168.27,4.62]
[1729478950479,4.62,168.38,168.18,2.90423818]
[1729478950480,4.62,168.38,168.26,4.62]
[1729478950686,2.9716,168.31,168.25,4.62]
[1729478951182,2.9719,168.29,168.25,4.62]
[1729478951384,4.62,168.34,168.18,2.92404133]
[1729478951584,133.77782643,168.39,168.19,1.09291491]
[1729478951585,4.62,168.33,168.19,1.09291491]
[1729478951785,4.62,168.32,168.17,4.62]
[1729478951979,115.97782643,168.39,168.18,1.09301764]
[1729478952185,4.62,168.38,168.19,1.09301764]
[1729478952381,4.62,168.38,168.24,2.9726]
[1729478952591,4.62,168.38,168.24,7.65616832]
[1729478952986,2.9717,168.3,168.24,3.03616832]
[1729478953187,4.62,168.33,168.23,4.62]
[1729478953387,4.62,168.33,168.24,2.92495118]
[1729478954095,4.62,168.33,168.23,4.62]
[1729478954391,2.9717,168.3,168.23,7.5928]
[1729478954592,4.62,168.33,168.24,1.2827]
[1729478954794,4.62,168.33,168.25,3.0419925]
[1729478956884,2.9716,168.3,168.25,3.0419925]
[1729478957082,115.97782643,168.39,168.24,1.2827]
[1729478957282,4.62,168.38,168.25,1.2927]
[1729478957494,2.9706,168.36,168.25,1.2927]
[1729478957689,4.62,168.38,168.26,2.9722]
[1729478957883,4.62,168.38,168.27,4.62]
[1729478958085,4.62,168.38,168.25,1.2927]
[1729478958286,4.62,168.38,168.25,5.9127]
[1729478958686,4.62,168.38,168.26,2.95374442]
[1729478958994,2.9716,168.3,168.26,2.95374442]
[1729478959300,4.62,168.34,168.26,2.95374442]
[1729478959789,2.9716,168.3,168.26,2.95374442]
[1729478959997,4.62,168.34,168.25,1.2927]
[1729478960195,4.62,168.34,168.24,1.2827]
[1729478960592,2.9719,168.29,168.24,4.28609468]
[1729478960793,4.62,168.34,168.24,1.2827]
[1729478960993,2.9721,168.28,168.24,1.2827]
[1729478961188,4.62,168.3,168.24,1.2827]
[1729478961390,4.62,168.3,168.2,4.62]
[1729478961595,2.9723,168.26,168.2,7.5933]
[1729478962302,4.62,168.3,168.2,4.62]
[1729478962795,4.62,168.33,168.2,4.62]
[1729478963191,2.9721,168.27,168.22,2.973]
[1729478963399,4.62,168.33,168.17,1.3428]
[1729478963587,4.62,168.33,168.18,5.71302296]
[1729478963900,4.62,168.33,168.2,2.9732]
[1729478964289,4.62,168.33,168.19,4.62]
[1729478964494,0.9262,168.32,168.19,4.62]
[1729478965398,0.9262,168.32,168.21,2.9732]
[1729478965699,0.9262,168.32,168.2,4.64]
[1729478965999,1.4925,168.32,168.2,4.64]
[1729478966301,1.4925,168.32,168.17,1.3428]
[1729478967300,2.9731,168.22,168.17,1.3428]
[1729478967501,4.64,168.25,168.17,1.3428]
[1729478970010,4.64,168.28,168.18,4.64]
[1729478970496,2.9723,168.27,168.18,4.64]
[1729478970805,4.64,168.28,168.18,4.64]
[1729478970998,2.9725,168.25,168.19,2.9735]
[1729478971498,4.64,168.28,168.18,4.64]
[1729478972402,2.9724,168.26,168.18,4.64]
[1729478972700,1.4925,168.32,168.18,4.64]
[1729478972894,122.51771603,168.35,168.19,1.09303021]
[1729478973092,4.84,168.37,168.2,1.09303021]
[1729478973297,4.84,168.39,168.21,1.09303021]
[1729478973501,2.9707,168.35,168.27,2.9721]
[1729478973706,2.9707,168.35,168.28,8.6676]
[1729478974000,2.9703,168.38,168.32,2.9712]
[1729478974206,4.84,168.41,168.28,11.58234207]
[1729478974508,1.4886,168.48,168.37,2.9703]
[1729478974509,2.9695,168.42,168.37,2.9703]
[1729478974715,4.84,168.46,168.36,4.84]
[1729478974999,4.84,168.46,168.37,4.27233291]
[1729478975201,4.84,168.46,168.37,1.2354]
[1729478975795,2.9695,168.43,168.37,1.2354]
[1729478976005,4.84,168.46,168.37,1.2354]
[1729478976609,4.84,168.46,168.28,5.50694207]
[1729478976806,22.64,168.46,168.29,1.2376]
[1729478977196,22.64,168.46,168.25,2.95785234]
[1729478977402,22.64,168.46,168.24,4.84]
[1729478977612,0.86660342,168.45,168.24,7.88019657]
[1729478978304,2.9717,168.3,168.24,7.88019657]
[1729478978610,4.84,168.33,168.24,7.88019657]
[1729478978907,4.84,168.33,168.25,2.9724]
[1729478978908,2.9714,168.31,168.25,2.9724]
[1729478979100,4.84,168.33,168.24,7.88019657]
[1729478979613,4.84,168.38,168.24,7.88019657]
[1729478979812,4.84,168.4,168.24,7.88019657]
[1729478979999,2.9701,168.39,168.25,1.09259303]
[1729478980200,2.9701,168.39,168.26,1.09257971]
[1729478980406,4.84,168.4,168.24,7.88019657]
[1729478980702,7.8098,168.4,168.25,1.09248481]
[1729478980907,4.84,168.4,168.26,1.09248481]
[1729478981107,2.9697,168.41,168.34,2.9707]
[1729478981307,2.9697,168.41,168.34,6.01470356]
[1729478982005,2.9695,168.42,168.36,2.9705]
[1729478982406,4.84,168.45,168.35,2.582]
[1729478982615,4.84,168.45,168.35,5.52790579]
[1729478982804,4.84,168.45,168.35,2.582]
[1729478983008,2.9694,168.43,168.35,2.582]
[1729478983407,4.84,168.45,168.36,2.92093545]
[1729478984007,2.9693,168.43,168.37,2.9703]
[1729478984313,4.84,168.51,168.37,7.80672456]
[1729478984514,2.9695,168.42,168.37,4.84]
[1729478984812,4.84,168.46,168.37,4.84]
[1729478985408,2.9696,168.41,168.37,4.84]
[1729478985913,2.9709,168.34,168.2,4.84]
[1729478986214,4.84,168.37,168.26,2.6158]
[1729478986409,2.9707,168.36,168.28,2.9718]
[1729478986717,4.84,168.37,168.29,4.84]
[1729478986909,2.9706,168.36,168.29,4.84]
[1729478987917,2.9706,168.36,168.29,7.8117]
[1729478988211,4.84,168.37,168.29,7.8117]
[1729478988212,2.9708,168.35,168.29,7.8117]
[1729478989413,2.9705,168.36,168.3,2.9716]
[1729478989611,4.84,168.39,168.29,4.84]
[1729478990114,2.9703,168.38,168.32,2.9711]
[1729478990609,2.9704,168.37,168.32,2.9711]
[1729478991308,2.97,168.4,168.33,2.9709]
[1729478991513,4.84,168.41,168.34,1.3026]
[1729478991714,4.84,168.44,168.34,2.6091]
[1729478991911,4.84,168.44,168.34,3.8417]
[1729478992115,7.8092,168.44,168.37,2.9702]
[1729478992311,7.8092,168.44,168.37,2.90000193]
[1729478992506,4.84,168.47,168.37,4.84]
[1729478992711,4.84,168.47,168.38,2.90475847]
[1729478993211,2.9688,168.46,168.4,2.9698]
[1729478993813,2.9693,168.44,168.38,2.9701]
[1729478994323,4.84,168.47,168.37,7.88686005]
[1729478995413,4.84,168.47,168.37,10.85706005]
[1729478995414,2.9694,168.43,168.37,10.85706005]
[1729478996921,2.9694,168.43,168.38,2.9701]
[1729478997120,2.9694,168.43,168.37,7.88686005]
[1729478997914,2.9694,168.43,168.37,10.85716005]
[1729479000317,4.84,168.47,168.37,10.85716005]
[1729479000523,2.9695,168.42,168.37,10.85716005]
[1729479000727,4.84,168.47,168.38,2.9701]
[1729479001224,4.84,168.47,168.37,7.88686005]
[1729479001516,4.84,168.47,168.36,2.99061642]
[1729479001717,4.84,168.47,168.35,4.8]
[1729479002226,2.9698,168.4,168.36,2.94842392]
[1729479002717,4.84,168.47,168.35,7.75644643]
[1729479002925,124.14907302,168.53,168.35,7.75644643]
[1729479003117,4.8,168.51,168.35,7.75644643]
[1729479003320,2.9684,168.48,168.43,2.9693]
[1729479003522,4.8,168.52,168.43,2.9693]
[1729479004021,128.94907302,168.53,168.45,2.9689]
[1729479004224,128.94907302,168.53,168.46,2.90783501]
[1729479004711,2.9679,168.51,168.46,2.90783501]
[1729479006118,2.9674,168.54,168.48,2.9684]
[1729479006523,2.9676,168.53,168.47,2.9686]
[1729479006920,2.9676,168.53,168.48,2.94137742]
[1729479007925,17.8,168.63,168.49,4.8]
[1729479008226,4.8,168.62,168.5,6.0267]
[1729479008425,4.8,168.62,168.53,2.9674]
[1729479008628,5.66723462,168.62,168.54,1.3523]
[1729479008824,4.8,168.62,168.54,1.3523]
[1729479009029,2.9658,168.63,168.55,4.8]
[1729479009526,124.06965975,168.64,168.55,4.8]
[1729479009928,124.06965975,168.64,168.55,7.78682966]
[1729479010618,2.9653,168.66,168.55,7.78682966]
[1729479011323,64.14,168.75,168.56,4.8]
[1729479011627,0.8676091,168.71,168.56,4.8]
[1729479011831,4.8,168.71,168.56,4.8]
[1729479012127,2.9651,168.67,168.56,4.8]
[1729479012320,4.8,168.71,168.56,4.8]
[1729479012529,2.9663,168.61,168.55,2.98682966]
[1729479012728,2.9663,168.61,168.57,4.8]
[1729479013129,2.9656,168.64,168.58,2.9666]
[1729479013331,2.9656,168.64,168.57,7.78184476]
[1729479013332,4.8,168.67,168.57,7.78184476]
[1729479014631,2.9656,168.64,168.58,2.9666]
[1729479014832,4.8,168.67,168.58,4.3218]
[1729479015036,4.8,168.69,168.58,4.3218]
[1729479015231,2.9656,168.65,168.58,4.3218]
[1729479016530,2.9656,168.65,168.59,2.9665]
[1729479016835,4.8,168.69,168.57,7.78184476]
[1729479017633,2.9659,168.63,168.57,7.78184476]
[1729479017941,4.8,168.69,168.58,4.8]
[1729479018132,2.9658,168.63,168.58,4.8]
[1729479018333,64.14,168.75,168.58,4.8]
[1729479018634,4.8,168.71,168.59,1.2839]
[1729479019548,2.9661,168.62,168.59,1.2839]
[1729479019843,4.8,168.67,168.59,1.2839]
[1729479020029,4.8,168.69,168.59,1.2839]
[1729479020539,2.9652,168.66,168.59,1.2839]
[1729479020730,4.8,168.69,168.59,1.2839]
[1729479020934,123.98253119,168.76,168.59,1.2839]
[1729479021236,2.9644,168.71,168.62,2.9658]
[1729479021432,2.9644,168.71,168.63,6.1563]
[1729479021630,128.78253119,168.76,168.63,6.1563]
[1729479021842,2.9645,168.7,168.63,9.1219]
[1729479022539,2.9645,168.71,168.64,2.9656]
[1729479022739,4.8,168.75,168.64,2.9656]
[1729479022929,123.98253119,168.76,168.63,6.1563]
[1729479023136,2.9642,168.73,168.66,2.9651]
[1729479023343,2.9642,168.73,168.67,7.353]
[1729479023534,123.98253119,168.76,168.67,7.353]
[1729479023932,123.98253119,168.76,168.67,10.32921442]
[1729479024534,4.8,168.79,168.67,10.32921442]
[1729479024939,2.9637,168.75,168.68,2.9647]
[1729479025238,4.8,168.79,168.68,2.9647]
[1729479025433,4.8,168.79,168.67,5.52921442]
[1729479025638,4.8,168.79,168.68,4.8]
[1729479026242,2.9645,168.71,168.68,4.8]
[1729479026440,4.8,168.79,168.68,4.8]
[1729479026643,4.8,168.79,168.67,5.52921442]
[1729479026846,4.8,168.79,168.68,4.8]
[1729479027538,0.5594,168.83,168.68,4.8]